[Event "*** Titled Tuesday Blitz"]
[Site "Chess.com"]
[Date "2021.03.30"]
[Round "6"]
[White "bocah_sakit"]
[Black "OhanyanEminChess"]
[Result "1-0"]
[WhiteElo "2852"]
[BlackElo "2680"]
[TimeControl "180+1"]
[EndTime "11:06:32 PDT"]
[Termination "bocah_sakit won on time"]

1. e4 {[%clk 0:03:00.9]} 1... e5 {[%clk 0:02:59.1]} 2. Nf3 {[%clk 0:03:01]} 2...
Nc6 {[%clk 0:02:59.2]} 3. Bb5 {[%clk 0:03:01.6]} 3... f5 {[%clk 0:02:58.9]} 4.
d3 {[%clk 0:03:00.7]} 4... fxe4 {[%clk 0:02:59.2]} 5. dxe4 {[%clk 0:03:01.6]}
5... Nf6 {[%clk 0:02:59.8]} 6. O-O {[%clk 0:03:00.4]} 6... Bc5 {[%clk 0:03:00]}
7. Qd3 {[%clk 0:03:00.1]} 7... d6 {[%clk 0:03:00.1]} 8. a4 {[%clk 0:02:59.4]}
8... a6 {[%clk 0:02:50.5]} 9. Bxc6+ {[%clk 0:02:46.9]} 9... bxc6 {[%clk
0:02:51.4]} 10. a5 {[%clk 0:02:40.2]} 10... Qe7 {[%clk 0:02:27.6]} 11. Be3
{[%clk 0:02:37.8]} 11... Bxe3 {[%clk 0:02:13.7]} 12. Qxe3 {[%clk 0:02:38.7]}
12... O-O {[%clk 0:02:10.7]} 13. Nbd2 {[%clk 0:02:37.8]} 13... Be6 {[%clk
0:02:01.9]} 14. Qc3 {[%clk 0:02:23.7]} 14... c5 {[%clk 0:01:42.5]} 15. Ne1
{[%clk 0:02:07.2]} 15... Nd7 {[%clk 0:01:38.6]} 16. Nd3 {[%clk 0:02:04.5]} 16...
Rab8 {[%clk 0:01:21.7]} 17. b4 {[%clk 0:02:01.6]} 17... Rb5 {[%clk 0:01:02.6]}
18. Rfb1 {[%clk 0:01:56.9]} 18... cxb4 {[%clk 0:00:27]} 19. Nxb4 {[%clk
0:01:36.3]} 19... Rc5 {[%clk 0:00:23.4]} 20. Qe3 {[%clk 0:01:32.8]} 20... Ra8
{[%clk 0:00:17.6]} 21. c3 {[%clk 0:01:31.9]} 21... Bc4 {[%clk 0:00:13.4]} 22.
Nxc4 {[%clk 0:01:23.1]} 22... Rxc4 {[%clk 0:00:14.3]} 23. Qd3 {[%clk 0:01:22.3]}
23... Qf7 {[%clk 0:00:09.1]} 24. Nd5 {[%clk 0:01:22.6]} 24... Rc6 {[%clk
0:00:08.6]} 25. Rb4 {[%clk 0:01:00.9]} 25... h6 {[%clk 0:00:06.2]} 26. Rab1
{[%clk 0:01:00.1]} 26... Kh7 {[%clk 0:00:05.6]} 27. Qh3 {[%clk 0:00:51.3]} 27...
Nc5 {[%clk 0:00:02.6]} 28. f3 {[%clk 0:00:49.4]} 28... Rf8 {[%clk 0:00:02.4]}
29. Rb8 {[%clk 0:00:46.8]} 29... Rxb8 {[%clk 0:00:02.2]} 30. Rxb8 {[%clk
0:00:47.7]} 30... Qg6 {[%clk 0:00:01.2]} 31. Qc8 {[%clk 0:00:45]} 31... Qg5
{[%clk 0:00:01.9]} 32. Qg8+ {[%clk 0:00:41.6]} 32... Kg6 {[%clk 0:00:02.6]} 33.
Qe8+ {[%clk 0:00:41]} 33... Kh7 {[%clk 0:00:03.3]} 34. f4 {[%clk 0:00:20.4]}
34... Qg4 {[%clk 0:00:01.7]} 35. Qg8+ {[%clk 0:00:19.8]} 35... Kg6 {[%clk
0:00:01.9]} 36. Ne7+ {[%clk 0:00:19.2]} 36... Kh5 {[%clk 0:00:02.3]} 37. h3
{[%clk 0:00:14.9]} 37... Qd1+ {[%clk 0:00:01.7]} 38. Kh2 {[%clk 0:00:14.9]}
38... Nxe4 {[%clk 0:00:01.3]} 39. Qf7+ {[%clk 0:00:15]} 1-0

[Event "*** Titled Tuesday Blitz"]
[Site "Chess.com"]
[Date "2021.03.30"]
[Round "6"]
[White "Firouzja2003"]
[Black "Fandorine"]
[Result "1-0"]
[WhiteElo "3105"]
[BlackElo "2883"]
[TimeControl "180+1"]
[EndTime "11:06:35 PDT"]
[Termination "Firouzja2003 won by resignation"]

1. d4 {[%clk 0:03:00.9]} 1... Nf6 {[%clk 0:03:00]} 2. Bg5 {[%clk 0:03:00.8]}
2... g6 {[%clk 0:02:59.2]} 3. Nc3 {[%clk 0:02:55]} 3... Bg7 {[%clk 0:02:55.5]}
4. e4 {[%clk 0:02:54.7]} 4... d5 {[%clk 0:02:55.8]} 5. Bxf6 {[%clk 0:02:51.5]}
5... exf6 {[%clk 0:02:55]} 6. exd5 {[%clk 0:02:45.2]} 6... O-O {[%clk
0:02:54.7]} 7. Bc4 {[%clk 0:02:44.5]} 7... Nd7 {[%clk 0:02:46.3]} 8. Nge2 {[%clk
0:02:44.8]} 8... Nb6 {[%clk 0:02:46.1]} 9. Bb3 {[%clk 0:02:44.8]} 9... a5 {[%clk
0:02:45.1]} 10. a4 {[%clk 0:02:43.8]} 10... Re8 {[%clk 0:02:41.4]} 11. O-O
{[%clk 0:02:44.1]} 11... Bd7 {[%clk 0:02:36.5]} 12. Qd2 {[%clk 0:02:35.3]} 12...
f5 {[%clk 0:02:33.8]} 13. Rfe1 {[%clk 0:02:30.6]} 13... Qf6 {[%clk 0:02:22.9]}
14. h3 {[%clk 0:02:26]} 14... h5 {[%clk 0:02:16.4]} 15. Rad1 {[%clk 0:02:18.3]}
15... h4 {[%clk 0:02:13]} 16. Kh1 {[%clk 0:02:01.3]} 16... g5 {[%clk 0:02:01.2]}
17. f3 {[%clk 0:01:51.9]} 17... Bf8 {[%clk 0:01:54.2]} 18. Nc1 {[%clk
0:01:49.3]} 18... Bd6 {[%clk 0:01:26.5]} 19. Nd3 {[%clk 0:01:48.5]} 19... Bg3
{[%clk 0:01:25.3]} 20. Rf1 {[%clk 0:01:34.8]} 20... Kg7 {[%clk 0:01:01.4]} 21.
Nc5 {[%clk 0:01:06.4]} 21... Bf4 {[%clk 0:00:56.1]} 22. Qd3 {[%clk 0:01:03.6]}
22... Re3 {[%clk 0:00:54.1]} 23. Nxd7 {[%clk 0:01:04]} 23... Nxd7 {[%clk
0:00:54.6]} 24. Qb5 {[%clk 0:01:03.9]} 24... Nb6 {[%clk 0:00:48.2]} 25. Ne2
{[%clk 0:00:57]} 25... Bd6 {[%clk 0:00:44]} 26. c3 {[%clk 0:00:52.3]} 26... Rae8
{[%clk 0:00:36.5]} 27. Ng1 {[%clk 0:00:47.4]} 27... Bg3 {[%clk 0:00:29.9]} 28.
Bc2 {[%clk 0:00:44.9]} 28... Nc8 {[%clk 0:00:29.6]} 29. Qxa5 {[%clk 0:00:24]}
29... Ne7 {[%clk 0:00:27.6]} 30. Qb5 {[%clk 0:00:20.8]} 30... Ng6 {[%clk
0:00:26.3]} 31. d6 {[%clk 0:00:20.3]} 31... Qxd6 {[%clk 0:00:16.6]} 32. Qxf5
{[%clk 0:00:20.9]} 32... Bf4 {[%clk 0:00:14.9]} 33. Be4 {[%clk 0:00:19.8]} 33...
c6 {[%clk 0:00:11.7]} 34. Rfe1 {[%clk 0:00:19.3]} 34... Rxe1 {[%clk 0:00:09.4]}
35. Rxe1 {[%clk 0:00:20.2]} 35... Bg3 {[%clk 0:00:10.3]} 36. Rf1 {[%clk
0:00:20.1]} 36... Bf4 {[%clk 0:00:08.5]} 37. Ne2 {[%clk 0:00:20.2]} 37... Re6
{[%clk 0:00:08.6]} 38. Nxf4 {[%clk 0:00:19.7]} 38... Nxf4 {[%clk 0:00:08.5]} 39.
Qxg5+ {[%clk 0:00:19.7]} 39... Rg6 {[%clk 0:00:06.7]} 40. Bxg6 {[%clk
0:00:19.4]} 40... Nxg6 {[%clk 0:00:07.2]} 41. f4 {[%clk 0:00:19.4]} 41... f6
{[%clk 0:00:07.9]} 42. Qg4 {[%clk 0:00:19.2]} 42... Kf7 {[%clk 0:00:05.1]} 43.
f5 {[%clk 0:00:19.6]} 43... Nf8 {[%clk 0:00:05.3]} 44. Qxh4 {[%clk 0:00:20.1]}
1-0

[Event "*** Titled Tuesday Blitz"]
[Site "Chess.com"]
[Date "2021.03.30"]
[Round "6"]
[White "marianokar"]
[Black "Susik_Gaboyan"]
[Result "0-1"]
[WhiteElo "2491"]
[BlackElo "2249"]
[TimeControl "180+1"]
[EndTime "11:06:36 PDT"]
[Termination "Susik_Gaboyan won by checkmate"]

1. Nf3 {[%clk 0:01:44.4]} 1... Nf6 {[%clk 0:02:44.9]} 2. d4 {[%clk 0:01:43.2]}
2... g6 {[%clk 0:02:45.8]} 3. c4 {[%clk 0:01:43.4]} 3... Bg7 {[%clk 0:02:46.5]}
4. Nc3 {[%clk 0:01:44]} 4... d5 {[%clk 0:02:47.3]} 5. Bg5 {[%clk 0:01:41]} 5...
Ne4 {[%clk 0:02:45.9]} 6. cxd5 {[%clk 0:01:41.3]} 6... Nxg5 {[%clk 0:02:45.5]}
7. Nxg5 {[%clk 0:01:42.2]} 7... e6 {[%clk 0:02:46.2]} 8. Qd2 {[%clk 0:01:42.9]}
8... h6 {[%clk 0:02:46.8]} 9. Nh3 {[%clk 0:01:12.9]} 9... exd5 {[%clk
0:02:43.3]} 10. Nf4 {[%clk 0:01:10.3]} 10... c6 {[%clk 0:02:41.1]} 11. Qe3+
{[%clk 0:01:10.5]} 11... Qe7 {[%clk 0:02:40.3]} 12. Qxe7+ {[%clk 0:01:10.6]}
12... Kxe7 {[%clk 0:02:41.2]} 13. e3 {[%clk 0:01:11.1]} 13... b6 {[%clk
0:02:15.7]} 14. Be2 {[%clk 0:01:10.5]} 14... Ba6 {[%clk 0:02:14.8]} 15. Bxa6
{[%clk 0:01:08.1]} 15... Nxa6 {[%clk 0:02:15.7]} 16. O-O {[%clk 0:01:08.2]}
16... h5 {[%clk 0:02:06]} 17. Rac1 {[%clk 0:01:06.9]} 17... g5 {[%clk
0:02:05.9]} 18. Nd3 {[%clk 0:01:04.4]} 18... Nc7 {[%clk 0:02:04.7]} 19. e4
{[%clk 0:00:34.6]} 19... Bxd4 {[%clk 0:01:55.8]} 20. exd5 {[%clk 0:00:34.3]}
20... Nxd5 {[%clk 0:01:32.5]} 21. Rfe1+ {[%clk 0:00:28.7]} 21... Kf6 {[%clk
0:01:22.6]} 22. Ne4+ {[%clk 0:00:24]} 22... Kg6 {[%clk 0:01:15.3]} 23. Rxc6+
{[%clk 0:00:24]} 23... f6 {[%clk 0:01:13.6]} 24. Rd1 {[%clk 0:00:18.7]} 24...
Rac8 {[%clk 0:01:07]} 25. Rd6 {[%clk 0:00:18.4]} 25... Rhd8 {[%clk 0:01:06.3]}
26. Kf1 {[%clk 0:00:16.9]} 26... Rxd6 {[%clk 0:01:04.2]} 27. Nxd6 {[%clk
0:00:17.8]} 27... Rc2 {[%clk 0:01:04.7]} 28. b3 {[%clk 0:00:16.3]} 28... Bxf2
{[%clk 0:00:55.1]} 29. Nxf2 {[%clk 0:00:15.1]} 29... Ne3+ {[%clk 0:00:55.4]} 30.
Ke1 {[%clk 0:00:14.5]} 30... Nxd1 {[%clk 0:00:55.6]} 31. Nxd1 {[%clk 0:00:15.4]}
31... Rxg2 {[%clk 0:00:54.6]} 32. a4 {[%clk 0:00:15.4]} 32... Rxh2 {[%clk
0:00:54.3]} 33. Nb5 {[%clk 0:00:15.8]} 33... a6 {[%clk 0:00:52.9]} 34. Nc7
{[%clk 0:00:14.8]} 34... a5 {[%clk 0:00:51.9]} 35. Nf2 {[%clk 0:00:15.1]} 35...
g4 {[%clk 0:00:49.1]} 36. Kf1 {[%clk 0:00:15.7]} 36... g3 {[%clk 0:00:49]} 37.
Ne4 {[%clk 0:00:15.4]} 37... h4 {[%clk 0:00:49]} 38. Nd5 {[%clk 0:00:14.6]}
38... Rb2 {[%clk 0:00:48.8]} 39. Nxb6 {[%clk 0:00:13.8]} 39... Rxb3 {[%clk
0:00:44.5]} 40. Nc4 {[%clk 0:00:14.7]} 40... Rb4 {[%clk 0:00:42.4]} 41. Ncd2
{[%clk 0:00:14.6]} 41... f5 {[%clk 0:00:40]} 42. Kg2 {[%clk 0:00:15.5]} 42...
fxe4 {[%clk 0:00:39.8]} 43. Kh3 {[%clk 0:00:14.2]} 43... e3 {[%clk 0:00:39.5]}
44. Nf3 {[%clk 0:00:15.1]} 44... e2 {[%clk 0:00:40]} 45. Ne1 {[%clk 0:00:15]}
45... Rb1 {[%clk 0:00:40.1]} 46. Ng2 {[%clk 0:00:15.3]} 46... Kg5 {[%clk
0:00:36.1]} 47. Nxh4 {[%clk 0:00:16.2]} 47... Rh1+ {[%clk 0:00:33.1]} 48. Kxg3
{[%clk 0:00:15.4]} 48... Rxh4 {[%clk 0:00:32.7]} 49. Kg2 {[%clk 0:00:15.4]}
49... e1=Q {[%clk 0:00:31.7]} 50. Kf3 {[%clk 0:00:15.3]} 50... Rf4+ {[%clk
0:00:31.7]} 51. Kg2 {[%clk 0:00:14.7]} 51... Qf1+ {[%clk 0:00:32.6]} 52. Kh2
{[%clk 0:00:14.6]} 52... Rf2+ {[%clk 0:00:32.3]} 53. Kg3 {[%clk 0:00:14.5]}
53... Qg2# {[%clk 0:00:33.2]} 0-1

[Event "*** Titled Tuesday Blitz"]
[Site "Chess.com"]
[Date "2021.03.30"]
[Round "6"]
[White "thechesscorner64"]
[Black "LamaChampetre"]
[Result "1-0"]
[WhiteElo "2350"]
[BlackElo "2215"]
[TimeControl "180+1"]
[EndTime "11:06:36 PDT"]
[Termination "thechesscorner64 won on time"]

1. e4 {[%clk 0:03:00.9]} 1... c5 {[%clk 0:02:59.4]} 2. Nf3 {[%clk 0:03:00.7]}
2... g6 {[%clk 0:02:58.8]} 3. c3 {[%clk 0:03:00.2]} 3... d5 {[%clk 0:02:58.4]}
4. exd5 {[%clk 0:02:57.6]} 4... Qxd5 {[%clk 0:02:59.3]} 5. d4 {[%clk 0:02:56.3]}
5... Bg7 {[%clk 0:02:58.7]} 6. Na3 {[%clk 0:02:55.7]} 6... Nc6 {[%clk
0:02:52.9]} 7. Bc4 {[%clk 0:02:54.9]} 7... Qe4+ {[%clk 0:02:51.8]} 8. Be3 {[%clk
0:02:54]} 8... cxd4 {[%clk 0:02:49.4]} 9. Bxf7+ {[%clk 0:02:53.4]} 9... Kf8
{[%clk 0:02:26.7]} 10. cxd4 {[%clk 0:02:50.3]} 10... Bg4 {[%clk 0:02:19.7]} 11.
Bxg8 {[%clk 0:02:33.7]} 11... Rxg8 {[%clk 0:02:12.5]} 12. O-O {[%clk 0:02:17]}
12... Bxf3 {[%clk 0:01:48.5]} 13. gxf3 {[%clk 0:02:14.6]} 13... Qd5 {[%clk
0:01:39.5]} 14. Nc2 {[%clk 0:02:00]} 14... Rd8 {[%clk 0:01:38.9]} 15. Re1 {[%clk
0:01:53.4]} 15... Nxd4 {[%clk 0:01:00.1]} 16. Nxd4 {[%clk 0:01:41.4]} 16... Bxd4
{[%clk 0:00:59.5]} 17. Bxd4 {[%clk 0:01:41.7]} 17... Qxd4 {[%clk 0:00:59.9]} 18.
Qe2 {[%clk 0:01:41.8]} 18... Qf6 {[%clk 0:00:48.6]} 19. Rac1 {[%clk 0:01:32.2]}
19... Rg7 {[%clk 0:00:45.8]} 20. Rc7 {[%clk 0:01:27.2]} 20... Rf7 {[%clk
0:00:43.3]} 21. Qe3 {[%clk 0:01:15.3]} 21... Rd5 {[%clk 0:00:19.7]} 22. Qh6+
{[%clk 0:00:56.8]} 22... Ke8 {[%clk 0:00:17.6]} 23. Qe3 {[%clk 0:00:27.8]} 23...
Rg5+ {[%clk 0:00:14.9]} 24. Kh1 {[%clk 0:00:27.6]} 24... Qxf3+ {[%clk 0:00:14]}
25. Qxf3 {[%clk 0:00:27]} 25... Rxf3 {[%clk 0:00:13.4]} 26. Rexe7+ {[%clk
0:00:27.1]} 26... Kf8 {[%clk 0:00:12.4]} 27. Rxh7 {[%clk 0:00:26.1]} 27... Kg8
{[%clk 0:00:11.8]} 28. Rhg7+ {[%clk 0:00:22.6]} 28... Kf8 {[%clk 0:00:09.3]} 29.
Rxb7 {[%clk 0:00:22.7]} 29... Rd3 {[%clk 0:00:07.5]} 30. Rgf7+ {[%clk
0:00:22.6]} 30... Ke8 {[%clk 0:00:07.1]} 31. h3 {[%clk 0:00:20.7]} 31... Rd1+
{[%clk 0:00:06]} 32. Kh2 {[%clk 0:00:21.2]} 32... Rdg1 {[%clk 0:00:05.9]} 33. h4
{[%clk 0:00:15.7]} 33... R5g2+ {[%clk 0:00:04.7]} 34. Kh3 {[%clk 0:00:15.9]}
34... g5 {[%clk 0:00:02]} 35. h5 {[%clk 0:00:07.7]} 35... g4+ {[%clk 0:00:02]}
36. Kh4 {[%clk 0:00:07.7]} 36... g3 {[%clk 0:00:01.6]} 37. Rfe7+ {[%clk
0:00:06.2]} 1-0

[Event "*** Titled Tuesday Blitz"]
[Site "Chess.com"]
[Date "2021.03.30"]
[Round "6"]
[White "Msb2"]
[Black "alexrustemov"]
[Result "1-0"]
[WhiteElo "2913"]
[BlackElo "2724"]
[TimeControl "180+1"]
[EndTime "11:06:37 PDT"]
[Termination "Msb2 won on time"]

1. d4 {[%clk 0:03:00.9]} 1... e6 {[%clk 0:02:59.9]} 2. Nf3 {[%clk 0:03:00.9]}
2... Nf6 {[%clk 0:02:59.4]} 3. e3 {[%clk 0:03:00.9]} 3... c5 {[%clk 0:02:55.8]}
4. Bd3 {[%clk 0:03:01.3]} 4... d5 {[%clk 0:02:51.2]} 5. b3 {[%clk 0:02:59.4]}
5... Nc6 {[%clk 0:02:47.9]} 6. O-O {[%clk 0:02:58.5]} 6... cxd4 {[%clk
0:02:38.2]} 7. exd4 {[%clk 0:02:59.4]} 7... Be7 {[%clk 0:02:34.8]} 8. Re1 {[%clk
0:02:59.3]} 8... O-O {[%clk 0:02:34.5]} 9. c3 {[%clk 0:02:53.7]} 9... b6 {[%clk
0:02:27.7]} 10. Bg5 {[%clk 0:02:52.6]} 10... Bb7 {[%clk 0:02:26.9]} 11. Nbd2
{[%clk 0:02:52]} 11... Rc8 {[%clk 0:02:26.2]} 12. Rc1 {[%clk 0:02:51.9]} 12...
Qc7 {[%clk 0:02:05.5]} 13. Ne5 {[%clk 0:02:36.5]} 13... h6 {[%clk 0:01:58]} 14.
Bh4 {[%clk 0:02:32.8]} 14... Ne8 {[%clk 0:01:23]} 15. Bg3 {[%clk 0:02:27.1]}
15... Qd8 {[%clk 0:01:15.4]} 16. Bb1 {[%clk 0:02:23.6]} 16... Nxe5 {[%clk
0:01:10.2]} 17. Bxe5 {[%clk 0:02:21.3]} 17... Bg5 {[%clk 0:00:55.6]} 18. Qc2
{[%clk 0:02:17.9]} 18... g6 {[%clk 0:00:50.1]} 19. Rcd1 {[%clk 0:02:09.5]} 19...
Nd6 {[%clk 0:00:45.9]} 20. Qd3 {[%clk 0:01:50.6]} 20... Bf6 {[%clk 0:00:39.7]}
21. Qg3 {[%clk 0:01:43]} 21... Nf5 {[%clk 0:00:32]} 22. Bxf5 {[%clk 0:01:39.7]}
22... exf5 {[%clk 0:00:32.9]} 23. Bxf6 {[%clk 0:01:21.7]} 23... Qxf6 {[%clk
0:00:32.6]} 24. f4 {[%clk 0:01:22.6]} 24... Rc7 {[%clk 0:00:26.1]} 25. Re3
{[%clk 0:01:21.4]} 25... Rfc8 {[%clk 0:00:26.4]} 26. Rde1 {[%clk 0:01:20.3]}
26... Kg7 {[%clk 0:00:26.4]} 27. h4 {[%clk 0:01:16.7]} 27... h5 {[%clk 0:00:26]}
28. Rc1 {[%clk 0:01:13.6]} 28... a5 {[%clk 0:00:23]} 29. Nf3 {[%clk 0:01:12.5]}
29... b5 {[%clk 0:00:22.3]} 30. Ne5 {[%clk 0:01:08.9]} 30... b4 {[%clk
0:00:22.5]} 31. c4 {[%clk 0:01:08.9]} 31... dxc4 {[%clk 0:00:22.6]} 32. bxc4
{[%clk 0:01:09.8]} 32... Be4 {[%clk 0:00:22.6]} 33. c5 {[%clk 0:01:09.2]} 33...
Qe6 {[%clk 0:00:22.2]} 34. Nc4 {[%clk 0:01:07]} 34... Rd8 {[%clk 0:00:19.2]} 35.
Nxa5 {[%clk 0:00:53.9]} 35... Rxd4 {[%clk 0:00:18.8]} 36. Nb3 {[%clk 0:00:54.4]}
36... Rc4 {[%clk 0:00:17.8]} 37. Ree1 {[%clk 0:00:52.4]} 37... Ra7 {[%clk
0:00:11.3]} 38. Qf2 {[%clk 0:00:52.3]} 38... Rc7 {[%clk 0:00:04.2]} 39. Rxc4
{[%clk 0:00:52.5]} 39... Qxc4 {[%clk 0:00:04.6]} 40. Rc1 {[%clk 0:00:53.4]}
40... Qd5 {[%clk 0:00:05]} 41. Qb2+ {[%clk 0:00:53.3]} 41... f6 {[%clk
0:00:04.6]} 42. Qe2 {[%clk 0:00:51.1]} 42... Bd3 {[%clk 0:00:04.1]} 43. Qd2
{[%clk 0:00:47.6]} 43... Bc4 {[%clk 0:00:04]} 44. Qxb4 {[%clk 0:00:40.5]} 44...
Bxb3 {[%clk 0:00:02.9]} 45. axb3 {[%clk 0:00:41]} 45... Qd3 {[%clk 0:00:02.6]}
46. Qc3 {[%clk 0:00:36]} 46... Qe2 {[%clk 0:00:02.2]} 47. c6 {[%clk 0:00:34.5]}
47... Re7 {[%clk 0:00:02.2]} 48. c7 {[%clk 0:00:32.7]} 48... Re3 {[%clk
0:00:01.2]} 49. c8=Q {[%clk 0:00:33.2]} 1-0

[Event "*** Titled Tuesday Blitz"]
[Site "Chess.com"]
[Date "2021.03.30"]
[Round "6"]
[White "BigAl"]
[Black "Pikachess999"]
[Result "1-0"]
[WhiteElo "2498"]
[BlackElo "2363"]
[TimeControl "180+1"]
[EndTime "11:06:38 PDT"]
[Termination "BigAl won on time"]

1. Nf3 {[%clk 0:03:00.9]} 1... d5 {[%clk 0:02:03.7]} 2. g3 {[%clk 0:03:00.2]}
2... g6 {[%clk 0:02:02.8]} 3. Bg2 {[%clk 0:03:00.2]} 3... Bg7 {[%clk 0:02:03.5]}
4. O-O {[%clk 0:03:00.7]} 4... e5 {[%clk 0:02:03.9]} 5. d3 {[%clk 0:03:01.1]}
5... Ne7 {[%clk 0:02:04.2]} 6. Nbd2 {[%clk 0:03:00.7]} 6... O-O {[%clk
0:02:04.6]} 7. e4 {[%clk 0:03:01.6]} 7... Nbc6 {[%clk 0:02:04.8]} 8. exd5 {[%clk
0:02:56]} 8... Nxd5 {[%clk 0:02:05.7]} 9. Re1 {[%clk 0:02:56.2]} 9... h6 {[%clk
0:02:05.6]} 10. a4 {[%clk 0:02:55.9]} 10... a5 {[%clk 0:02:04.5]} 11. Nc4 {[%clk
0:02:56]} 11... Re8 {[%clk 0:02:03.6]} 12. c3 {[%clk 0:02:55.4]} 12... Kh7
{[%clk 0:01:58.9]} 13. Qb3 {[%clk 0:02:50.8]} 13... f5 {[%clk 0:01:52]} 14.
Ncxe5 {[%clk 0:02:31.5]} 14... Nxe5 {[%clk 0:01:48.8]} 15. Nxe5 {[%clk
0:02:31.5]} 15... Bxe5 {[%clk 0:01:18]} 16. Qxd5 {[%clk 0:02:23.4]} 16... Qxd5
{[%clk 0:01:17.8]} 17. Bxd5 {[%clk 0:02:23.4]} 17... c6 {[%clk 0:01:18.7]} 18.
Bf3 {[%clk 0:02:16.5]} 18... Bd7 {[%clk 0:01:18.6]} 19. d4 {[%clk 0:02:12.6]}
19... Bd6 {[%clk 0:01:18.4]} 20. Bd2 {[%clk 0:02:09.4]} 20... Kg7 {[%clk
0:01:18.5]} 21. h4 {[%clk 0:02:04]} 21... Rf8 {[%clk 0:01:09.4]} 22. c4 {[%clk
0:01:59.2]} 22... h5 {[%clk 0:00:54.3]} 23. c5 {[%clk 0:01:44.4]} 23... Bc7
{[%clk 0:00:51.2]} 24. d5 {[%clk 0:01:29.3]} 24... Rae8 {[%clk 0:00:42.2]} 25.
Bc3+ {[%clk 0:01:27.9]} 25... Kf7 {[%clk 0:00:31.8]} 26. d6 {[%clk 0:01:27.1]}
26... Bd8 {[%clk 0:00:31.7]} 27. Rxe8 {[%clk 0:01:16.9]} 27... Rxe8 {[%clk
0:00:31.6]} 28. Re1 {[%clk 0:01:16.4]} 28... Rxe1+ {[%clk 0:00:24.5]} 29. Bxe1
{[%clk 0:01:16.7]} 29... Bf6 {[%clk 0:00:19.6]} 30. Bxa5 {[%clk 0:01:16.5]}
30... Bxb2 {[%clk 0:00:19.5]} 31. Kf1 {[%clk 0:01:16.5]} 31... Ba3 {[%clk
0:00:16.6]} 32. Bb6 {[%clk 0:01:15.7]} 32... Ke6 {[%clk 0:00:17.1]} 33. Ke2
{[%clk 0:01:13]} 33... Ke5 {[%clk 0:00:17.5]} 34. Kd3 {[%clk 0:01:11.1]} 34...
Be6 {[%clk 0:00:14.8]} 35. a5 {[%clk 0:01:08.6]} 35... Bd7 {[%clk 0:00:14.5]}
36. Bd1 {[%clk 0:01:08.3]} 36... f4 {[%clk 0:00:11]} 37. Bc2 {[%clk 0:01:00.8]}
37... Bb4 {[%clk 0:00:10.7]} 38. Kc4 {[%clk 0:00:59.2]} 38... Be1 {[%clk
0:00:10]} 39. gxf4+ {[%clk 0:00:56.8]} 39... Kxf4 {[%clk 0:00:10.1]} 40. Bxg6
{[%clk 0:00:57.4]} 40... Bxf2 {[%clk 0:00:10.5]} 41. Bxh5 {[%clk 0:00:57.4]}
41... Bxh4 {[%clk 0:00:10.9]} 42. Bf7 {[%clk 0:00:53.9]} 42... Ke5 {[%clk
0:00:09.4]} 43. Bc7 {[%clk 0:00:53.3]} 43... Bg5 {[%clk 0:00:08.5]} 44. Kb4
{[%clk 0:00:52.6]} 44... Bh4 {[%clk 0:00:08.2]} 45. Bc4 {[%clk 0:00:49.9]} 45...
Be1+ {[%clk 0:00:07.9]} 46. Ka4 {[%clk 0:00:50.1]} 46... Bh4 {[%clk 0:00:08.3]}
47. Bb6 {[%clk 0:00:49.9]} 47... Kd4 {[%clk 0:00:05.8]} 48. Bg8 {[%clk
0:00:49.4]} 48... Ke5 {[%clk 0:00:05.7]} 49. a6 {[%clk 0:00:45.4]} 49... bxa6
{[%clk 0:00:05.8]} 50. Ka5 {[%clk 0:00:46.1]} 50... Bf2 {[%clk 0:00:04.7]} 51.
Kxa6 {[%clk 0:00:44.2]} 51... Bh4 {[%clk 0:00:01.7]} 52. Kb7 {[%clk 0:00:44]}
52... Bf6 {[%clk 0:00:01.6]} 53. Kc7 {[%clk 0:00:43.6]} 53... Bf5 {[%clk
0:00:01.3]} 54. Kxc6 {[%clk 0:00:41.7]} 54... Be4+ {[%clk 0:00:01.3]} 55. Kc7
{[%clk 0:00:41.1]} 1-0

[Event "*** Titled Tuesday Blitz"]
[Site "Chess.com"]
[Date "2021.03.30"]
[Round "6"]
[White "JiiHart"]
[Black "fabianvivasz"]
[Result "0-1"]
[WhiteElo "2059"]
[BlackElo "2397"]
[TimeControl "180+1"]
[EndTime "11:06:38 PDT"]
[Termination "fabianvivasz won by resignation"]

1. e4 {[%clk 0:02:58.9]} 1... c5 {[%clk 0:02:57.2]} 2. Nf3 {[%clk 0:02:58.9]}
2... d6 {[%clk 0:02:57.2]} 3. d4 {[%clk 0:02:59.4]} 3... cxd4 {[%clk 0:02:58.1]}
4. Nxd4 {[%clk 0:02:59.9]} 4... Nf6 {[%clk 0:02:58]} 5. Nc3 {[%clk 0:03:00.5]}
5... a6 {[%clk 0:02:58.6]} 6. Bg5 {[%clk 0:03:00.4]} 6... Nbd7 {[%clk
0:02:58.1]} 7. f4 {[%clk 0:03:00.7]} 7... e5 {[%clk 0:02:57.8]} 8. Nf5 {[%clk
0:02:47.7]} 8... Qb6 {[%clk 0:02:56.3]} 9. fxe5 {[%clk 0:02:12.5]} 9... dxe5
{[%clk 0:02:50.8]} 10. Qd2 {[%clk 0:02:12.1]} 10... Qxb2 {[%clk 0:02:44]} 11.
Rb1 {[%clk 0:02:10.5]} 11... Qa3 {[%clk 0:02:44.1]} 12. Rb3 {[%clk 0:01:57.5]}
12... Qa5 {[%clk 0:02:31]} 13. Nd6+ {[%clk 0:01:39.6]} 13... Bxd6 {[%clk
0:02:27.8]} 14. Qxd6 {[%clk 0:01:40.5]} 14... h6 {[%clk 0:02:00]} 15. Bxf6
{[%clk 0:01:31]} 15... Nxf6 {[%clk 0:02:00.9]} 16. Bd3 {[%clk 0:00:46]} 16...
Be6 {[%clk 0:01:27.6]} 17. Qb4 {[%clk 0:00:34.9]} 17... Qxb4 {[%clk 0:01:25.1]}
18. Rxb4 {[%clk 0:00:35.8]} 18... Rc8 {[%clk 0:01:19.4]} 19. Kd2 {[%clk
0:00:31.4]} 19... Rc7 {[%clk 0:01:06.5]} 20. Rhb1 {[%clk 0:00:30.8]} 20... Bc8
{[%clk 0:01:04.7]} 21. a4 {[%clk 0:00:26.3]} 21... O-O {[%clk 0:00:51.6]} 22.
Rc4 {[%clk 0:00:25.6]} 22... Rxc4 {[%clk 0:00:50.5]} 23. Bxc4 {[%clk 0:00:26]}
23... Rd8+ {[%clk 0:00:51.1]} 24. Ke3 {[%clk 0:00:19.5]} 24... Ng4+ {[%clk
0:00:50.6]} 25. Ke2 {[%clk 0:00:15.6]} 25... Nxh2 {[%clk 0:00:50.4]} 26. Nd5
{[%clk 0:00:15.8]} 26... Kf8 {[%clk 0:00:47.5]} 27. Rb6 {[%clk 0:00:15.2]} 27...
Ng4 {[%clk 0:00:47]} 28. a5 {[%clk 0:00:14.7]} 28... h5 {[%clk 0:00:35.9]} 29.
c3 {[%clk 0:00:13.8]} 29... h4 {[%clk 0:00:32.4]} 30. Kf3 {[%clk 0:00:13.3]}
30... Nh2+ {[%clk 0:00:26.3]} 31. Ke2 {[%clk 0:00:12.1]} 31... Ng4 {[%clk
0:00:26.1]} 32. Rb1 {[%clk 0:00:12]} 32... g5 {[%clk 0:00:25.6]} 33. Kf3 {[%clk
0:00:10.4]} 33... Kg7 {[%clk 0:00:24.4]} 34. Rh1 {[%clk 0:00:09.7]} 34... Nf6
{[%clk 0:00:23.9]} 35. Ne3 {[%clk 0:00:09.6]} 35... g4+ {[%clk 0:00:23.1]} 36.
Ke2 {[%clk 0:00:08.6]} 36... Rh8 {[%clk 0:00:20.6]} 37. Bd5 {[%clk 0:00:07.2]}
37... h3 {[%clk 0:00:15.1]} 38. gxh3 {[%clk 0:00:06.9]} 38... gxh3 {[%clk
0:00:15.9]} 39. Rxh3 {[%clk 0:00:06.9]} 39... Rxh3 {[%clk 0:00:15.3]} 40. Nf5+
{[%clk 0:00:04]} 40... Bxf5 {[%clk 0:00:14.9]} 41. exf5 {[%clk 0:00:04]} 41...
Nxd5 {[%clk 0:00:15.3]} 42. c4 {[%clk 0:00:03.8]} 42... Nf4+ {[%clk 0:00:15.3]}
0-1